bitfinex-derivatives/quotes_SOLF0:USTF0_20251002
["timestamp","ask_amount","ask_price","bid_price","bid_amount"]
[1759417424000,3.52007852,223.13,222.97,62.7506]
[1759417424203,116.04,223.13,222.98,7.43]
[1759417424507,329.79,223.14,223.0,62.7415]
[1759417424710,66.3618,223.11,222.89,7.43]
[1759417424908,62.7161,223.1,222.92,7.43]
[1759417425211,66.3771,223.06,222.92,7.43]
[1759417425711,4.0333,223.01,222.92,7.43]
[1759417426710,4.0327,223.05,222.92,7.43]
[1759417427115,121.3527,223.05,222.92,7.43]
[1759417427307,3.65,223.06,222.93,62.7613]
[1759417427509,3.65,223.06,222.92,7.43]
[1759417427705,3.65,223.06,222.95,4.0342]
[1759417427909,117.26,223.09,222.96,7.43]
[1759417428707,3.65,223.04,222.88,7.43]
[1759417428912,66.3811,223.04,222.88,7.43]
[1759417429216,66.3811,223.04,222.89,4.0353]
[1759417429217,4.0331,223.02,222.89,4.0353]
[1759417429405,117.36,223.01,222.89,4.0353]
[1759417429813,4.0334,223.0,222.89,4.0353]
[1759417430115,180.1009,223.01,222.88,7.43]
[1759417430315,3.65,222.99,222.86,4.0358]
[1759417430820,4.0342,222.96,222.83,11.4664]
[1759417431016,180.0091,222.98,222.83,11.4664]
[1759417431324,4.0346,222.94,222.83,7.43]
[1759417431612,4.0346,222.94,222.77,62.8057]
[1759417431613,62.7599,222.94,222.78,7.43]
[1759417431823,3.65,222.95,222.78,7.43]
[1759417432018,97.6,222.94,222.78,7.43]
[1759417432223,4.0353,222.9,222.78,7.43]
[1759417432624,3.65,222.91,222.78,7.43]
[1759417432825,3.65,222.91,222.79,62.8004]
[1759417433126,94.98,222.9,222.78,7.43]
[1759417434028,4.0354,222.89,222.78,7.43]
[1759417434325,117.26,222.88,222.78,7.43]
[1759417434527,3.65,222.91,222.78,7.43]
[1759417434825,62.7354,223.03,222.79,7.43]
[1759417434826,86.06,222.92,222.79,7.43]
[1759417435030,3.65,222.96,222.81,7.43]
[1759417435727,117.28,222.95,222.81,7.43]
[1759417435930,117.34,222.95,222.81,7.43]
[1759417436125,3.65,223.01,222.85,62.7831]
[1759417436429,62.7198,223.08,222.84,7.43]
[1759417436430,3.65,223.06,222.9,7.43]
[1759417436630,3.5323376,223.05,222.9,7.43]
[1759417436831,3.5323376,223.04,222.9,7.43]
[1759417437030,8.5797183,223.13,222.97,62.7499]
[1759417437323,3.53262477,223.12,223.01,7.43]
[1759417437524,4.9297183,223.16,223.0,62.7412]
[1759417437525,3.32254157,223.11,223.05,62.728]
[1759417437728,4.9297183,223.2,223.06,7.43]
[1759417438725,4.9297183,223.21,223.06,7.43]
[1759417439029,62.6921,223.18,223.06,7.43]
[1759417439232,62.6953,223.17,223.06,7.43]
[1759417439431,62.6973,223.16,223.06,7.43]
[1759417439828,4.0306,223.16,223.06,7.43]
[1759417440335,62.6973,223.16,223.06,7.43]
[1759417440534,62.7064,223.13,223.06,7.43]
[1759417440928,62.7143,223.1,222.98,7.43]
[1759417441234,62.7284,223.05,222.9,51.18]
[1759417441429,117.32,223.12,222.93,7.2]
[1759417441629,117.32,223.12,222.93,11.2346]
[1759417441630,4.0318,223.09,222.93,11.2346]
[1759417441828,62.7147,223.1,222.94,7.2]
[1759417442031,117.32,223.12,222.94,7.2]
[1759417442032,62.7229,223.07,222.94,7.2]
[1759417442535,62.7254,223.06,222.94,7.2]
[1759417442734,4.0329,223.03,222.94,7.2]
[1759417443734,3.66,223.11,222.94,7.2]
[1759417443934,62.7146,223.1,222.95,7.2]
[1759417444134,62.717,223.09,222.95,7.2]
[1759417444432,3.66,223.11,222.95,7.2]
[1759417444636,62.6972,223.16,222.98,7.2]
[1759417444935,62.6972,223.16,223.0,7.2]
[1759417445138,4.0313,223.12,223.01,4.0331]
[1759417445435,62.7073,223.13,223.0,7.2]
[1759417445632,62.7125,223.11,223.0,7.2]
[1759417445833,62.7231,223.07,222.95,7.2]
[1759417446035,3.66,223.14,222.96,7.2]
[1759417446332,4.0315,223.11,222.97,4.60165092]
[1759417446538,62.7118,223.11,222.97,4.60165092]
[1759417446733,3.66,223.14,222.99,62.745]
[1759417446933,4.0312,223.12,223.0,7.2]
[1759417447336,62.7069,223.13,223.0,7.2]
[1759417447540,62.7069,223.13,222.93,118.7011]
[1759417447541,66.3749,223.1,222.94,7.2]
[1759417447733,62.7245,223.07,222.94,7.2]
[1759417447937,62.7202,223.08,222.94,7.2]
[1759417448239,4.0328,223.04,222.94,7.2]
[1759417448540,62.7231,223.07,222.94,7.2]
[1759417448541,3.66,223.1,222.94,7.2]
[1759417448838,4.0326,223.05,222.94,7.2]
[1759417449539,62.7313,223.04,222.94,7.2]
[1759417449840,62.7313,223.04,222.86,62.7816]
[1759417449841,62.7378,223.02,222.88,11.2355]
[1759417450041,4.0331,223.02,222.88,7.2]
[1759417450241,66.3919,223.04,222.9,4.0351]
[1759417450533,3.66,223.04,222.88,7.2]
[1759417450735,3.66,223.04,222.92,7.2]
[1759417451134,4.0331,223.02,222.92,7.2]
[1759417451641,62.7374,223.02,222.92,7.2]
[1759417451842,4.0335,223.0,222.92,7.2]
[1759417452141,62.7406,223.01,222.92,7.2]
[1759417452531,62.7345,223.03,222.86,11.80165092]
[1759417452532,62.7458,222.99,222.86,11.80165092]
[1759417452741,62.7479,222.98,222.86,7.2]
[1759417452940,62.7479,222.98,222.8,7.2]
[1759417452941,3.66,222.95,222.8,7.2]
[1759417453143,4.0351,222.91,222.8,7.2]
[1759417453646,4.0346,222.94,222.8,11.237]
[1759417454138,4.0346,222.94,222.8,7.2]
[1759417454350,62.7733,222.89,222.71,7.2]
[1759417454640,66.4513,222.83,222.67,7.2]
[1759417454850,62.7963,222.81,222.67,7.2]
[1759417455034,62.7936,222.82,222.67,7.2]
[1759417455234,3.66,222.83,222.67,7.2]
[1759417455537,3.66,222.8,222.67,7.2]
[1759417455745,4.0372,222.79,222.66,0.78130262]
[1759417455938,66.465,222.78,222.66,0.78130262]
[1759417456134,3.66,222.73,222.59,326.36]
[1759417456337,62.8285,222.7,222.62,0.78144297]
[1759417456537,3.66,222.71,222.57,12.5541151]
[1759417456734,3.66,222.81,222.59,7.2]
[1759417456933,3.66,222.81,222.57,12.5541151]
[1759417456934,3.66,222.79,222.58,7.2]
[1759417457134,3.66,222.88,222.67,7.2]
[1759417457340,180.517,222.88,222.71,7.2]
[1759417457638,3.66,222.87,222.71,7.2]
[1759417457833,4.60165092,222.85,222.61,70.0519]
[1759417458036,3.66,222.85,222.69,62.8277]
[1759417458236,3.66,222.85,222.62,7.2]
[1759417458437,3.66,222.85,222.66,62.8372]
[1759417458635,3.66,222.85,222.61,110.66]
[1759417458636,3.66,222.85,222.69,7.2]
[1759417458832,3.66,222.85,222.61,117.86]
[1759417458833,62.7967,222.81,222.61,117.86]
[1759417459039,3.66,222.88,222.64,4.60165092]
[1759417459234,121.74,222.88,222.73,62.8166]
[1759417459439,3.66,222.86,222.72,7.2]
[1759417459633,5.87869446,222.92,222.75,7.2]
[1759417459847,3.66,222.98,222.82,62.7922]
[1759417460045,66.3893,223.05,222.84,62.7859]
[1759417460348,3.66,223.01,222.86,62.7808]
[1759417460645,3.66,223.01,222.85,69.9839]
[1759417460840,3.66,223.01,222.85,7.2]
[1759417461042,3.66,223.01,222.81,62.7956]
[1759417461239,3.66,223.01,222.82,7.2]
[1759417461240,4.60165092,222.99,222.82,7.2]
[1759417461440,4.60165092,222.99,222.77,389.325]
[1759417461441,62.7631,222.93,222.77,7.2]
[1759417461749,62.7621,222.93,222.77,7.2]
[1759417462042,62.7792,222.87,222.7,7.2]
[1759417462247,182.3392,222.87,222.7,7.2]
[1759417462441,119.56,222.87,222.7,7.2]
[1759417462641,3.66,222.88,222.7,7.2]
[1759417462839,62.7494,222.98,222.74,62.8145]
[1759417463040,3.66,222.95,222.75,7.2]
[1759417463352,3.66,222.95,222.76,62.8091]
[1759417463549,3.66,222.92,222.75,7.2]
[1759417463749,3.66,222.99,222.85,62.7835]
[1759417463945,33.6,223.06,222.84,7.56]
[1759417464250,3.66,222.99,222.84,7.56]
[1759417464448,66.4057,222.99,222.84,7.56]
[1759417464749,3.66,223.05,222.87,62.7778]
[1759417464943,3.66,223.05,222.87,62.7785]
[1759417465250,3.66,223.03,222.87,62.778]
[1759417465653,62.737,223.02,222.86,7.56]
[1759417465847,128.26165092,223.03,222.86,7.56]
[1759417466050,120.0,223.02,222.86,7.56]
[1759417466250,8.26165092,223.03,222.86,7.56]
[1759417466446,128.24165092,223.03,222.86,7.56]
[1759417466651,128.24165092,223.03,222.79,7.56]
[1759417466652,3.66,222.95,222.79,7.56]
[1759417467049,3.66,222.95,222.8,4.60165092]
[1759417467247,62.7462,222.99,222.81,7.56]
[1759417467447,3.66,223.01,222.84,7.56]
[1759417467653,3.66,223.01,222.87,62.7777]
[1759417467852,110.78,223.07,222.9,7.56]
[1759417468052,62.7347,223.03,222.9,7.56]
[1759417468254,3.66,223.02,222.9,7.56]
[1759417468449,62.7654,222.92,222.64,70.4033]
[1759417468651,187.52705092,222.92,222.7,4.60165092]
[1759417468952,187.52705092,222.92,222.65,55.2]
[1759417468953,4.60165092,222.92,222.75,7.56]
[1759417469156,3.66,222.93,222.75,7.56]
[1759417469554,3.66,222.93,222.77,7.56]
[1759417469857,33.6,222.95,222.79,7.56]
[1759417470053,97.7942,222.96,222.79,7.56]
[1759417470257,3.66,222.98,222.82,7.56]
[1759417470448,120.38,222.97,222.82,7.56]
[1759417470650,3.66,222.96,222.77,62.8061]
[1759417470855,59.86,222.95,222.8,7.56]
[1759417471057,3.66,222.96,222.8,7.56]
[1759417471357,3.66,222.91,222.76,4.60165092]
[1759417471552,66.806,222.9,222.75,106.28]
[1759417472056,66.806,222.9,222.64,62.8436]
[1759417472057,62.7989,222.8,222.65,7.79]
[1759417472258,128.62165092,222.83,222.65,7.79]
[1759417472454,120.42,222.82,222.65,7.79]
[1759417472654,120.42,222.87,222.7,62.826]
[1759417472857,3.66,222.88,222.74,7.79]
[1759417473553,62.7799,222.87,222.74,7.79]
[1759417473760,4.0358,222.87,222.74,7.79]
[1759417474061,3.66,222.88,222.74,7.79]
[1759417474452,3.66,222.88,222.76,62.8091]
[1759417474657,120.48,222.93,222.78,7.79]
[1759417474954,3.66,222.95,222.78,70.5928]
[1759417475152,62.7594,222.94,222.78,7.79]
[1759417475350,3.66,222.95,222.79,62.8011]
[1759417475552,124.12,222.95,222.79,62.8011]
[1759417475757,3.66,222.95,222.8,66.8352]
[1759417475952,3.66,222.95,222.81,62.7956]
[1759417476159,3.66,222.95,222.83,7.79]
[1759417476360,3.66,222.95,222.84,4.0363]
[1759417477062,4.0345,222.94,222.83,7.79]
[1759417477262,66.4297,222.91,222.76,7.79]
[1759417477458,62.7706,222.9,222.76,7.79]
[1759417477762,62.7706,222.9,222.72,59.5]
[1759417477763,66.4423,222.86,222.72,59.5]
[1759417477963,3.66,222.86,222.72,59.5]
[1759417478464,3.66,222.86,222.73,62.8177]
[1759417478761,3.66,222.86,222.75,4.0378]
[1759417479161,3.66,222.86,222.72,59.5]
[1759417479364,62.7877,222.84,222.71,7.79]
[1759417479563,3.66,222.86,222.71,7.79]
[1759417479963,3.66,222.86,222.71,11.8285]
[1759417480158,62.7859,222.85,222.71,7.79]
[1759417480362,3.66,222.81,222.65,12.39165092]
[1759417481066,3.66,222.81,222.65,75.23115092]
[1759417481263,3.66,222.81,222.68,62.8317]
[1759417481464,3.66,222.81,222.71,4.0386]
[1759417481661,3.66,222.81,222.66,62.837]
[1759417481861,3.66,222.81,222.67,62.8349]
[1759417482461,4.037,222.8,222.7,4.0387]
[1759417482660,3.66,222.87,222.7,7.79]
[1759417482866,124.06,222.87,222.7,7.79]
[1759417483068,4.0363,222.84,222.71,4.0385]
[1759417483263,4.0363,222.84,222.7,7.79]
[1759417483563,4.0367,222.82,222.71,4.0386]
[1759417483864,3.66,222.87,222.7,7.79]
[1759417484161,3.66,222.87,222.74,7.79]
[1759417484364,9.66096939,222.93,222.76,4.60165092]
[1759417484865,4.0356,222.88,222.77,4.0375]
[1759417485066,62.7816,222.86,222.74,7.79]
[1759417485262,62.7846,222.85,222.74,7.79]
[1759417485469,4.0367,222.82,222.7,4.0387]
[1759417485660,8.26165092,222.87,222.68,62.8309]
[1759417485868,62.7847,222.85,222.69,7.79]
[1759417486064,4.0365,222.83,222.72,4.0384]
[1759417486260,67.38835092,222.85,222.69,7.79]
[1759417486460,67.38835092,222.85,222.67,104.62]
[1759417486461,62.7929,222.82,222.67,104.62]
[1759417486663,3.66,222.83,222.67,104.62]
[1759417486868,93.66,222.83,222.67,104.62]
[1759417487468,97.6966,222.83,222.72,4.0384]
[1759417487768,3.66,222.83,222.72,4.0384]
[1759417488274,3.66,222.83,222.7,7.79]
[1759417488770,3.66,222.83,222.7,70.6154]
[1759417489067,3.66,222.83,222.7,7.79]
[1759417489264,8.26165092,222.89,222.72,62.8198]
[1759417489469,3.66,222.89,222.74,7.79]
[1759417490164,4.0358,222.87,222.75,4.0379]
[1759417490360,62.7791,222.87,222.74,7.79]
[1759417490560,62.7888,222.84,222.67,7.79]
[1759417490970,66.4569,222.81,222.67,7.79]
[1759417491272,62.7988,222.8,222.67,7.79]
[1759417492272,4.0379,222.75,222.67,7.79]
[1759417492468,62.8072,222.77,222.67,7.79]
[1759417492672,3.66,222.77,222.64,59.52]
[1759417492876,4.0381,222.74,222.65,4.0397]
[1759417493063,3.66,222.77,222.64,59.52]
[1759417493572,4.0378,222.76,222.64,59.52]
[1759417493767,3.66,222.83,222.65,7.79]
[1759417493962,4.0368,222.82,222.72,4.0384]
[1759417494168,3.66,222.89,222.73,62.8176]
[1759417494366,3.66,222.89,222.76,7.79]
[1759417494672,3.66,222.95,222.81,62.7955]
[1759417494874,3.66,222.95,222.8,7.79]
[1759417495068,3.66,223.01,222.86,62.7809]
[1759417495265,3.66,223.01,222.83,7.79]
[1759417495266,3.66,223.01,222.87,7.79]
[1759417495462,3.66,223.08,222.91,62.7664]
[1759417495665,62.7283,223.05,222.92,7.79]
[1759417495868,62.7284,223.05,222.92,7.79]
[1759417496069,4.0326,223.05,222.92,7.79]
[1759417496274,67.32565092,223.07,222.92,7.79]
[1759417496467,62.7253,223.06,222.92,7.79]
[1759417497273,8.26165092,223.11,222.92,7.79]
[1759417497575,66.3595,223.16,222.97,62.7494]
[1759417497774,66.3595,223.16,222.96,7.79]
[1759417497775,4.0313,223.12,223.01,4.0331]
[1759417497972,3.66,223.16,223.01,4.0331]
[1759417498368,3.66,223.16,223.0,7.79]
[1759417499272,4.0309,223.14,223.0,7.79]
[1759417499477,3.66,223.11,222.94,82.84]
[1759417499673,62.722,223.08,222.93,7.79]
[1759417499868,4.032,223.08,222.93,7.79]
[1759417500268,4.60165092,223.16,222.98,70.5373]
[1759417500575,70.95215092,223.19,223.01,62.7393]
[1759417500878,3.66,223.19,223.03,7.79]
[1759417501171,336.30356319,223.26,223.07,62.7217]
[1759417501377,326.62,223.26,223.12,7.33]
[1759417501577,330.27,223.26,223.12,7.33]
[1759417501975,4.0289,223.25,223.12,7.33]
[1759417502182,62.6818,223.22,223.12,7.33]
[1759417502381,62.6919,223.18,223.07,7.33]
[1759417502680,62.6945,223.17,223.07,7.33]
[1759417502880,62.7088,223.12,223.01,7.33]
[1759417503085,4.0312,223.12,223.01,7.33]
[1759417503287,62.7089,223.12,222.95,7.33]
[1759417503487,62.7171,223.09,222.95,7.33]
[1759417503787,66.7459,223.1,222.95,7.33]
[1759417503988,62.7285,223.05,222.95,7.33]
[1759417504184,4.0317,223.1,222.95,11.93165092]
[1759417504389,62.7121,223.11,222.96,7.33]
[1759417504592,62.7254,223.06,222.96,7.33]
[1759417504787,62.7172,223.09,222.96,7.33]
[1759417504987,62.7202,223.08,222.96,7.33]
[1759417505790,4.0323,223.07,222.96,7.33]
[1759417505991,62.7283,223.05,222.96,7.33]
[1759417506288,4.033,223.03,222.93,326.48]
[1759417506488,62.7343,223.03,222.9,132.45165092]
[1759417506691,62.7422,223.0,222.9,127.85]
[1759417506888,4.0337,222.99,222.9,127.85]
[1759417507282,7.6828,223.04,222.9,127.85]
[1759417507588,66.7637,223.04,222.9,132.45165092]
[1759417507788,62.7342,223.03,222.9,132.45165092]
[1759417508091,4.0332,223.01,222.9,127.85]
[1759417508290,66.3778,223.06,222.9,127.85]
[1759417508686,4.0325,223.05,222.9,127.85]
[1759417508887,62.7093,223.12,222.93,62.7617]
[1759417509084,3.65,223.13,222.97,7.33]
[1759417509290,66.7406,223.12,222.97,7.33]
[1759417509490,62.7227,223.07,222.97,7.33]
[1759417509689,4.032,223.08,222.97,7.33]
[1759417509890,62.7113,223.11,222.97,7.33]
[1759417510091,3.65,223.13,222.97,7.33]
[1759417510293,62.7084,223.12,222.97,7.33]
[1759417510492,3.65,223.13,222.97,7.33]
[1759417510691,66.3568,223.13,222.97,7.33]
[1759417510893,4.0315,223.11,222.97,11.3638]
[1759417511092,62.7289,223.05,222.9,7.33]
[1759417511297,62.7348,223.03,222.9,7.33]
[1759417511497,62.7394,223.01,222.9,7.33]
[1759417511699,3.65,223.02,222.9,7.33]
[1759417511993,62.7399,223.01,222.9,7.33]
[1759417512193,4.0337,222.99,222.85,4.0361]
[1759417512394,62.7485,222.98,222.84,7.33]
[1759417512592,62.7603,222.94,222.77,11.6630556]
[1759417512796,66.4103,222.94,222.77,11.6630556]
[1759417512996,7.6845,222.94,222.77,11.6630556]
[1759417513195,62.7451,222.99,222.8,7.33]
[1759417513496,4.034,222.97,222.82,4.0365]
[1759417513692,4.034,222.97,222.81,62.7947]
[1759417514597,4.0344,222.95,222.8,7.33]
[1759417514800,3.65,222.95,222.8,7.33]
[1759417514995,3.65,222.95,222.81,4.0368]
[1759417515397,62.7624,222.93,222.8,7.33]
[1759417516098,4.0351,222.91,222.8,7.33]
[1759417516296,3.65,222.95,222.8,7.33]
[1759417516899,62.7625,222.93,222.8,7.33]
[1759417517100,4.0353,222.9,222.8,7.33]
[1759417517398,3.65,222.95,222.8,7.33]
[1759417517799,4.0347,222.93,222.8,7.33]
[1759417518093,124.19,222.95,222.72,7.33]
[1759417518094,62.7769,222.88,222.72,7.33]
[1759417518295,4.036,222.86,222.72,7.33]
[1759417518497,62.7791,222.87,222.72,7.33]
[1759417518798,4.0363,222.84,222.72,7.33]
[1759417518992,66.4385,222.84,222.72,7.33]
[1759417519195,66.4385,222.84,222.68,4.0391]
[1759417519401,4.0372,222.8,222.67,120.56]
[1759417519601,3.65,222.81,222.67,183.3941]
[1759417519805,75.44,222.85,222.69,7.33]
[1759417520097,7.6865,222.83,222.69,7.33]
[1759417520699,4.0369,222.81,222.69,7.33]
[1759417520902,3.65,222.83,222.69,7.33]
[1759417521100,3.65,222.83,222.7,62.8265]
[1759417521301,70.04540534,222.89,222.71,62.8233]
[1759417521302,7.6855,222.89,222.71,62.8233]
[1759417521501,119.23,222.89,222.71,62.8233]
[1759417521698,62.7819,222.86,222.69,7.33]
[1759417521903,3.65,222.8,222.63,62.8462]
[1759417522401,3.65,222.8,222.64,62.8432]
[1759417522903,4.0373,222.79,222.67,4.0393]
[1759417523296,4.0373,222.79,222.66,7.82]
[1759417523502,120.46,222.85,222.65,62.8387]
[1759417523503,3.66,222.86,222.68,7.82]
[1759417523706,62.788,222.84,222.68,7.82]
[1759417523904,3.66,222.83,222.68,7.82]
[1759417524207,62.7929,222.82,222.68,7.82]
[1759417524810,4.0372,222.79,222.68,11.8591]
[1759417525106,62.8042,222.78,222.68,7.82]
[1759417525304,4.038,222.75,222.62,7.82]
[1759417525505,66.4642,222.78,222.63,62.8456]
[1759417525506,3.66,222.78,222.63,62.8456]
[1759417525801,3.66,222.84,222.67,7.82]
[1759417526107,62.7903,222.83,222.67,7.82]
[1759417526307,106.34,222.84,222.67,70.6537]
[1759417526509,3.66,222.84,222.69,62.8293]
[1759417526910,3.66,222.84,222.71,7.82]
[1759417527104,3.66,222.91,222.73,62.8177]
[1759417527311,3.66,222.91,222.76,62.8096]
[1759417527509,3.66,222.91,222.75,7.82]
[1759417527711,3.66,222.91,222.75,70.6314]
[1759417528111,62.7714,222.9,222.75,7.82]
[1759417528307,62.7848,222.85,222.69,7.82]
[1759417528607,7.696,222.86,222.72,4.0384]
[1759417528808,7.696,222.86,222.73,7.82]
[1759417529212,7.696,222.86,222.74,4.0381]
[1759417529414,3.66,222.86,222.73,7.82]
[1759417529614,62.7915,222.83,222.68,7.82]
[1759417529909,4.0366,222.83,222.7,4.0388]
[1759417530116,62.7856,222.85,222.68,7.82]
[1759417530307,62.7856,222.85,222.68,70.6512]
[1759417530615,3.66,222.86,222.72,7.82]
[1759417531116,4.0369,222.81,222.67,7.82]
[1759417531411,62.7931,222.82,222.67,7.82]
[1759417531617,62.7931,222.82,222.67,11.8592]
[1759417531812,4.0372,222.79,222.67,7.82]
[1759417532213,62.7985,222.8,222.67,7.82]
[1759417532414,4.0376,222.77,222.67,7.82]
[1759417532915,120.76,222.83,222.68,62.832]
[1759417532916,4.0365,222.83,222.68,62.832]
[1759417533113,66.4457,222.85,222.68,62.832]
[1759417533416,4.0364,222.84,222.69,62.8284]
[1759417533617,3.66,222.85,222.71,62.8226]
[1759417534310,3.66,222.91,222.76,62.8096]
[1759417534516,3.66,222.91,222.78,7.27]
[1759417534709,3.66,222.91,222.74,62.8149]
[1759417534710,3.66,222.91,222.74,4.038]
[1759417534910,62.7711,222.9,222.74,4.038]
[1759417535114,3.66,222.86,222.73,7.27]
[1759417535306,62.791,222.83,222.66,7.27]
[1759417535506,3.66,222.82,222.66,7.27]
[1759417536019,4.0374,222.78,222.68,4.0391]
[1759417537015,4.037,222.81,222.7,4.0388]
[1759417537212,3.66,222.82,222.7,4.0388]
[1759417537412,3.66,222.82,222.66,7.27]
[1759417537616,4.0372,222.79,222.69,4.039]
[1759417537817,3.66,222.82,222.67,62.8351]
[1759417538214,4.037,222.8,222.66,7.27]
[1759417538816,62.7957,222.81,222.66,11.3094]
[1759417539015,62.7993,222.8,222.66,11.3094]
[1759417539514,4.0377,222.76,222.66,11.3094]
[1759417539721,62.8015,222.79,222.66,7.27]
[1759417540018,66.4648,222.78,222.66,7.27]
[1759417540219,4.0381,222.75,222.66,7.27]
[1759417540415,3.66,222.78,222.66,7.27]
[1759417541015,3.66,222.78,222.68,4.0392]
[1759417541420,4.0376,222.77,222.66,7.27]
[1759417541618,3.66,222.78,222.66,7.27]
[1759417542417,3.66,222.78,222.61,7.27]
[1759417542722,3.66,222.71,222.57,12.5541151]
[1759417543416,4.0394,222.68,222.57,12.5541151]
[1759417543622,3.66,222.71,222.57,12.5541151]
[1759417544220,4.0395,222.67,222.57,12.5541151]
[1759417544924,7.6988,222.71,222.58,7.27]
[1759417545121,7.6988,222.71,222.58,11.311]
[1759417545423,7.6988,222.71,222.58,7.27]
[1759417545620,3.66,222.71,222.58,7.27]
[1759417545823,4.0382,222.74,222.59,62.8571]
[1759417546328,4.0382,222.74,222.62,7.27]
[1759417546823,4.0382,222.74,222.63,4.0401]
[1759417547024,3.66,222.76,222.62,7.27]
[1759417547424,3.66,222.76,222.62,11.3101]
[1759417547619,3.66,222.76,222.62,7.27]
[1759417547824,3.66,222.76,222.63,4.0401]
[1759417548121,62.8129,222.75,222.57,12.5541151]
[1759417548425,3.66,222.74,222.57,19.8241151]
[1759417548627,3.66,222.74,222.61,4.0404]
[1759417548825,4.0389,222.7,222.57,19.8241151]
[1759417549025,3.66,222.74,222.57,82.6862151]
[1759417549222,108.72,222.74,222.61,11.3104]
[1759417549428,4.0387,222.71,222.61,11.3104]
[1759417550025,3.66,222.74,222.63,4.04]
[1759417550228,62.8214,222.72,222.57,12.5541151]
[1759417550427,4.0394,222.67,222.57,16.5952151]
[1759417550827,3.66,222.71,222.57,12.5541151]
[1759417551023,3.66,222.71,222.58,4.0408]
[1759417551225,120.0,222.74,222.59,62.8575]
[1759417551427,120.0,222.74,222.58,7.27]
[1759417551619,66.4733,222.75,222.58,7.27]
[1759417551823,4.0385,222.72,222.62,4.0402]
[1759417552921,4.0385,222.72,222.64,4.0399]
[1759417553224,4.0385,222.72,222.58,70.1287]
[1759417553530,7.698,222.75,222.63,4.0401]
[1759417553723,3.66,222.75,222.63,4.0401]
[1759417554122,4.0377,222.77,222.67,11.3093]
[1759417554925,4.0379,222.75,222.64,4.0397]
[1759417555229,4.0379,222.75,222.62,7.27]
[1759417555525,3.66,222.76,222.66,4.0395]
[1759417556124,3.66,222.76,222.62,7.27]
[1759417556125,3.66,222.76,222.62,11.3101]
[1759417556325,62.8219,222.72,222.59,55.16]
[1759417556723,4.0393,222.68,222.59,55.16]
[1759417556929,62.8252,222.71,222.57,16.5953151]
[1759417557427,4.0396,222.66,222.57,16.5953151]
[1759417557730,4.0396,222.66,222.57,12.5541151]
[1759417558229,4.0391,222.69,222.57,12.5541151]
[1759417558425,3.66,222.73,222.58,7.27]